bitfinex-derivatives/quotes_BTCF0:USTF0_20251025
["timestamp","ask_amount","ask_price","bid_price","bid_amount"]
[1761383374240,0.06830894,111900.0,111890.0,0.2666548]
[1761383374452,0.10050177,111900.0,111890.0,0.2666548]
[1761383374752,0.06830894,111900.0,111890.0,0.2666548]
[1761383374941,0.06830894,111900.0,111890.0,0.29905163]
[1761383379044,0.04415,111900.0,111890.0,0.29905163]
[1761383381455,0.06830894,111900.0,111890.0,0.29905163]
[1761383382351,0.08096894,111900.0,111890.0,0.29905163]
[1761383382953,0.05681,111900.0,111890.0,0.29905163]
[1761383384550,0.04415,111900.0,111890.0,0.29905163]
[1761383386559,0.05681,111900.0,111890.0,0.29905163]
[1761383387563,0.05681,111900.0,111890.0,0.20343893]
[1761383387860,0.05681,111900.0,111890.0,0.29280333]
[1761383389962,0.05681,111900.0,111890.0,0.16610123]
[1761383390164,0.05681,111900.0,111890.0,0.29280333]
[1761383394465,0.05681,111900.0,111890.0,0.31683031]
[1761383397270,0.05681,111900.0,111890.0,0.22746591]
[1761383397568,0.05681,111900.0,111890.0,0.31683031]
[1761383398158,0.05681,111900.0,111890.0,0.63083031]
[1761383398358,0.08096894,111900.0,111890.0,0.63083031]
[1761383398562,0.08096894,111900.0,111890.0,0.31683031]
[1761383399371,0.08096894,111900.0,111890.0,0.22746591]
[1761383399870,0.08096894,111900.0,111890.0,0.10076381]
[1761383400170,0.08096894,111900.0,111890.0,0.22746591]
[1761383400871,0.08096894,111900.0,111890.0,0.31683151]
[1761383401564,0.04715894,111900.0,111890.0,0.32308151]
[1761383401765,0.06847894,111900.0,111890.0,0.29905453]
[1761383402065,0.04715894,111900.0,111890.0,0.29905453]
[1761383402263,0.06863894,111900.0,111890.0,0.29905453]
[1761383403472,0.06863894,111900.0,111890.0,0.32312962]
[1761383403672,0.04715894,111900.0,111890.0,0.32312962]
[1761383403972,0.02515894,111900.0,111890.0,0.29905453]
[1761383404165,0.02515894,111900.0,111890.0,0.32312941]
[1761383405659,0.02515894,111900.0,111890.0,0.33115483]
[1761383406672,0.02515894,111900.0,111890.0,0.45749835]
[1761383407271,0.02515894,111900.0,111890.0,0.44947273]
[1761383407469,0.02281494,111900.0,111890.0,0.48157303]
[1761383407665,0.02281494,111900.0,111890.0,0.45749835]
[1761383407973,0.09092283,111910.0,111890.0,0.45749835]
[1761383408158,0.10369283,111910.0,111900.0,0.63726233]
[1761383409168,0.0735,111910.0,111900.0,0.63726233]
[1761383409360,0.0755,111910.0,111900.0,0.63726233]
[1761383409968,0.0735,111910.0,111900.0,0.63726233]
[1761383410158,0.0755,111910.0,111900.0,0.63726233]
[1761383410568,0.0735,111910.0,111900.0,0.63726233]
[1761383410769,0.0755,111910.0,111900.0,0.63726233]
[1761383412969,0.10769283,111910.0,111900.0,0.61319562]
[1761383415271,0.06273,111910.0,111900.0,0.64569233]
[1761383415476,0.09492283,111910.0,111900.0,0.71098232]
[1761383416875,0.09492283,111910.0,111900.0,0.62162562]
[1761383417066,0.06273,111910.0,111900.0,0.73504683]
[1761383418878,0.06273,111910.0,111900.0,0.64569233]
[1761383419265,0.0755,111910.0,111900.0,0.32314233]
[1761383419673,0.0755,111910.0,111900.0,0.07009671]
[1761383419872,0.0755,111910.0,111900.0,0.29907562]
[1761383420673,0.10769283,111910.0,111900.0,0.29907562]
[1761383423075,0.0755,111910.0,111900.0,0.35524263]
[1761383424975,0.0755,111910.0,111900.0,0.33117592]
[1761383429677,0.0755,111910.0,111900.0,0.35522291]
[1761383430078,0.0755,111910.0,111900.0,0.32312261]
[1761383431682,0.0755,111910.0,111900.0,0.1965998]
[1761383431889,0.0755,111910.0,111900.0,0.32312261]
[1761383432691,0.0755,111910.0,111900.0,0.1965998]
[1761383434286,0.04125,111910.0,111900.0,0.32312261]
[1761383434688,0.06366,111910.0,111900.0,0.32312261]
[1761383434986,0.06366,111910.0,111900.0,0.36365291]
[1761383436085,0.06366,111910.0,111900.0,0.33960592]
[1761383438609,0.0776,111910.0,111900.0,0.33960592]
[1761383438788,0.0776,111910.0,111900.0,0.0865603]
[1761383438991,0.0776,111910.0,111900.0,0.33960592]
[1761383441199,0.0776,111910.0,111900.0,0.36366892]
[1761383443297,0.025,111900.0,111860.0,0.08063308]
[1761383443498,0.01394,111860.0,111850.0,0.11288631]
[1761383443699,0.05842,111830.0,111820.0,0.04336]
[1761383444000,0.52661523,111830.0,111820.0,0.04336]
[1761383444590,0.20781523,111830.0,111820.0,0.04336]
[1761383444791,0.52657523,111830.0,111820.0,0.04336]
[1761383445199,0.52657523,111830.0,111820.0,0.05036]
[1761383445596,0.40105242,111830.0,111820.0,0.05036]
[1761383445899,0.52757523,111830.0,111820.0,0.04536]
[1761383446510,0.08229242,111830.0,111820.0,0.04536]
[1761383446691,0.20881523,111830.0,111820.0,0.09351046]
[1761383447801,0.20881523,111830.0,111820.0,0.22003327]
[1761383448100,0.20881523,111830.0,111820.0,0.09351046]
[1761383448699,0.08229242,111830.0,111820.0,0.09351046]
[1761383449000,0.20881523,111830.0,111820.0,0.09351046]
[1761383452802,0.20881523,111830.0,111820.0,0.22003327]
[1761383453003,0.18594281,111830.0,111820.0,0.22003327]
[1761383453701,0.18594281,111830.0,111820.0,0.09351046]
[1761383455805,0.21038368,111830.0,111820.0,0.09351046]
[1761383456500,0.33690649,111830.0,111820.0,0.002]
[1761383458098,0.21038368,111830.0,111820.0,0.02436]
[1761383458402,0.21038368,111830.0,111820.0,0.04536]
[1761383460305,0.08386087,111830.0,111820.0,0.22003327]
[1761383460505,0.21038368,111830.0,111820.0,0.22003327]
[1761383461406,0.21038368,111830.0,111820.0,0.09351046]
[1761383461605,0.21038368,111830.0,111820.0,0.22003327]
[1761383463295,0.04751087,111830.0,111820.0,0.44440548]
[1761383463496,0.02544087,111830.0,111820.0,0.44440548]
[1761383463797,0.04847087,111830.0,111820.0,0.76272548]
[1761383464406,0.07080087,111830.0,111820.0,0.42026046]
[1761383464704,0.07080087,111830.0,111820.0,0.63620267]
[1761383464905,0.02544087,111830.0,111820.0,0.63620267]
[1761383465104,0.02303,111850.0,111840.0,0.03507]
[1761383465409,0.02303,111850.0,111840.0,0.27216621]
[1761383465707,0.04536,111850.0,111840.0,0.27216621]
[1761383466508,0.06745405,111860.0,111850.0,0.05184]
[1761383466811,0.06745405,111860.0,111850.0,0.17836281]
[1761383467508,0.08034405,111860.0,111850.0,0.17836281]
[1761383467903,0.08034405,111860.0,111850.0,0.18036281]
[1761383468098,0.08134405,111860.0,111850.0,0.18036281]
[1761383468310,0.12942186,111860.0,111850.0,0.18036281]
[1761383468615,0.08134405,111860.0,111850.0,0.18036281]
[1761383468908,0.06845405,111860.0,111850.0,0.18049429]
[1761383469301,0.06845405,111860.0,111850.0,0.26988969]
[1761383470509,0.08134405,111860.0,111850.0,0.04445]
[1761383471108,0.10732781,111860.0,111850.0,0.04445]
[1761383473814,0.10732781,111860.0,111850.0,0.1338454]
[1761383477120,0.13106071,111860.0,111850.0,0.1338454]
[1761383478016,0.13106071,111860.0,111850.0,0.04445]
[1761383478921,0.13106071,111860.0,111850.0,0.1338454]
[1761383479420,0.13106071,111860.0,111850.0,0.04445]
[1761383479622,0.13106071,111860.0,111850.0,0.1338455]
[1761383481425,0.13106071,111860.0,111850.0,0.04445]
[1761383483031,0.257715,111860.0,111850.0,0.04445]
[1761383483422,0.257715,111860.0,111850.0,0.002]
[1761383483621,0.257715,111860.0,111850.0,0.02328]
[1761383483936,0.257715,111860.0,111850.0,0.04445]
[1761383484634,0.2576853,111860.0,111850.0,0.04445]
[1761383486336,0.52724749,111860.0,111850.0,0.002]
[1761383486836,1.1753253,111860.0,111850.0,0.002]
[1761383487737,1.12724749,111860.0,111850.0,0.002]
[1761383491934,1.17542936,111860.0,111850.0,0.002]
[1761383493433,0.57542936,111860.0,111850.0,0.002]
[1761383498342,1.17542936,111860.0,111850.0,0.002]
[1761383503552,1.19542936,111860.0,111850.0,0.002]
[1761383509159,0.59542936,111860.0,111850.0,0.002]
[1761383513155,0.61165538,111860.0,111850.0,0.002]
[1761383514257,1.21165538,111860.0,111850.0,0.002]
[1761383514759,1.08500109,111860.0,111850.0,0.002]
[1761383515061,1.21165538,111860.0,111850.0,0.002]
[1761383519463,1.08500109,111860.0,111850.0,0.002]
[1761383519763,1.21165538,111860.0,111850.0,0.002]
[1761383522063,1.14724749,111860.0,111850.0,0.002]
[1761383523069,1.19554523,111860.0,111850.0,0.002]
[1761383525874,1.06889094,111860.0,111850.0,0.002]
[1761383526167,1.19554523,111860.0,111850.0,0.002]
[1761383528669,1.32231302,111860.0,111850.0,0.002]
[1761383531170,1.27401528,111860.0,111850.0,0.002]
[1761383532164,1.0205932,111860.0,111850.0,0.002]
[1761383532374,1.27401528,111860.0,111850.0,0.002]
[1761383534279,1.32232013,111860.0,111850.0,0.002]
[1761383536166,0.59416909,111860.0,111850.0,0.04558]
[1761383536365,0.72088013,111860.0,111850.0,0.04558]
[1761383541092,0.46745805,111860.0,111850.0,0.04558]
[1761383541387,0.72088013,111860.0,111850.0,0.04558]
[1761383545893,0.38856365,111860.0,111850.0,0.04558]
[1761383546091,0.45110157,111860.0,111850.0,0.04558]
[1761383546396,0.68452365,111860.0,111850.0,0.04558]
[1761383546695,0.55781261,111860.0,111850.0,0.17229104]
[1761383547592,0.55781261,111860.0,111850.0,0.04558]
[1761383547895,0.55781261,111860.0,111850.0,0.17229104]
[1761383548293,0.55781261,111860.0,111850.0,0.04558]
[1761383552095,0.68452365,111860.0,111850.0,0.04558]
[1761383552796,0.11514157,111860.0,111850.0,0.17229104]
[1761383552993,0.42288912,111860.0,111850.0,0.17229104]
[1761383553296,0.43094157,111860.0,111850.0,0.17229104]
[1761383554089,0.11514157,111860.0,111850.0,0.17229104]
[1761383554288,0.43094157,111860.0,111850.0,0.17229104]
[1761383554999,0.43094157,111860.0,111850.0,0.18211104]
[1761383555193,0.10225157,111860.0,111850.0,0.27150654]
[1761383555393,0.12637558,111860.0,111850.0,0.27150654]
[1761383555600,0.09418721,111860.0,111850.0,0.27150654]
[1761383557897,0.10716721,111860.0,111850.0,0.27150654]
[1761383560301,0.10716721,111860.0,111850.0,0.87150654]
[1761383563104,0.0830432,111860.0,111850.0,0.87150654]
[1761383564409,0.20975424,111860.0,111850.0,0.17229104]
[1761383566497,0.0830432,111860.0,111850.0,0.26168644]
[1761383567100,0.0830432,111860.0,111850.0,0.1349754]
[1761383567300,0.0830432,111860.0,111850.0,0.26168644]
[1761383568005,0.0700632,111860.0,111850.0,0.27150644]
[1761383576616,0.0247032,111860.0,111850.0,0.27150644]
[1761383576911,0.0247032,111860.0,111850.0,0.1447954]
[1761383577110,0.0247032,111860.0,111850.0,0.27150644]
[1761383577311,0.0477932,111860.0,111850.0,0.27150644]
[1761383578016,0.0706232,111860.0,111850.0,0.27150644]
[1761383579918,0.0706232,111860.0,111850.0,0.1447954]
[1761383580119,0.0706232,111860.0,111850.0,0.27150644]
[1761383582211,0.0840832,111860.0,111850.0,0.27150644]
[1761383583118,0.10820721,111860.0,111850.0,0.27150644]
[1761383589215,0.23491825,111860.0,111850.0,0.17229104]
[1761383590015,0.23491825,111860.0,111850.0,0.04558]
[1761383590720,0.23488574,111860.0,111850.0,0.04558]
[1761383591211,0.26707411,111860.0,111850.0,0.04558]
[1761383591524,0.14039558,111860.0,111850.0,0.04558]
[1761383592212,0.10820721,111860.0,111850.0,0.04558]
[1761383597420,0.23488574,111860.0,111850.0,0.04558]
[1761383598425,0.10820721,111860.0,111850.0,0.04558]
[1761383601423,0.23488574,111860.0,111850.0,0.04558]
[1761383603118,0.25906658,111860.0,111850.0,0.04558]
[1761383603324,0.29125495,111860.0,111850.0,0.04558]
[1761383603820,0.29125495,111860.0,111850.0,0.002]
[1761383604012,0.25906658,111860.0,111850.0,0.002]
[1761383604212,0.25906658,111860.0,111850.0,0.0456]
[1761383606121,0.25906658,111860.0,111850.0,0.02446]
[1761383608729,0.25906658,111860.0,111850.0,0.002]
[1761383610427,0.21076173,111860.0,111850.0,0.002]
[1761383610924,0.24292591,111860.0,111850.0,0.002]
[1761383611227,0.259008,111860.0,111850.0,0.002]
[1761383612929,0.279008,111860.0,111850.0,0.002]
[1761383613129,0.26291805,111860.0,111850.0,0.002]
[1761383617931,0.86291805,111860.0,111850.0,0.002]
[1761383620332,0.91116432,111860.0,111850.0,0.002]
[1761383621825,0.76448579,111860.0,111850.0,0.002]
[1761383622025,0.89116432,111860.0,111850.0,0.002]
[1761383622631,0.859008,111860.0,111850.0,0.002]
[1761383623634,0.89115754,111860.0,111850.0,0.002]
[1761383624737,0.84291127,111860.0,111850.0,0.002]
[1761383627740,0.55799127,111860.0,111850.0,0.002]
[1761383633233,0.574088,111860.0,111850.0,0.002]
[1761383634744,0.52584173,111860.0,111850.0,0.002]
[1761383635135,0.3991632,111860.0,111850.0,0.02484]
[1761383635443,0.52584173,111860.0,111850.0,0.002]
[1761383637042,0.54584173,111860.0,111850.0,0.002]
[1761383639641,0.61024962,111860.0,111850.0,0.002]
[1761383640444,0.48357109,111860.0,111850.0,0.002]
[1761383640651,0.61024962,111860.0,111850.0,0.002]
[1761383641350,0.54584173,111860.0,111850.0,0.002]
[1761383641943,0.4191632,111860.0,111850.0,0.002]
[1761383642143,0.54584173,111860.0,111850.0,0.002]
[1761383642648,0.3991632,111860.0,111850.0,0.02316]
[1761383642947,0.52584173,111860.0,111850.0,0.002]
[1761383643137,0.25905187,111860.0,111850.0,0.045]
[1761383643341,0.57413187,111860.0,111850.0,0.045]
[1761383644250,0.57413187,111860.0,111850.0,0.02368]
[1761383644849,0.58413187,111860.0,111850.0,0.02368]
[1761383646055,0.58413187,111860.0,111850.0,0.045]
[1761383646553,0.58413187,111860.0,111850.0,0.02368]
[1761383646853,0.58413187,111860.0,111850.0,0.002]
[1761383647256,0.26905187,111860.0,111850.0,0.002]
[1761383647453,0.58413187,111860.0,111850.0,0.002]
[1761383647756,0.58413187,111860.0,111850.0,0.02368]
[1761383648155,0.14237334,111860.0,111850.0,0.045]
[1761383648356,0.43131656,111860.0,111850.0,0.045]
[1761383650649,0.43131656,111860.0,111850.0,0.17166989]
[1761383650854,0.60627659,111860.0,111850.0,0.17166989]
[1761383652256,0.73294648,111860.0,111850.0,0.002]
[1761383652443,0.70465634,111860.0,111850.0,0.002]
[1761383652649,0.84742301,111860.0,111850.0,0.002]
[1761383652955,0.72075312,111860.0,111850.0,0.002]
[1761383655360,0.46741334,111860.0,111850.0,0.002]
[1761383655562,0.72075312,111860.0,111850.0,0.002]
[1761383657574,0.44741334,111860.0,111850.0,0.002]
[1761383657870,0.71075312,111860.0,111850.0,0.002]
[1761383660775,0.71075312,111860.0,111850.0,0.02368]
[1761383663075,0.71075312,111860.0,111850.0,0.002]
[1761383666879,0.39571312,111860.0,111850.0,0.002]
[1761383667180,0.71075312,111860.0,111850.0,0.002]
[1761383668782,0.39571312,111860.0,111850.0,0.002]
[1761383668983,0.71075312,111860.0,111850.0,0.002]
[1761383670282,0.39571312,111860.0,111850.0,0.002]
[1761383670583,0.71075312,111860.0,111850.0,0.002]
[1761383670781,0.71075312,111860.0,111850.0,0.02368]
[1761383670983,0.71075312,111860.0,111850.0,0.045]
[1761383671683,0.71075312,111860.0,111850.0,0.02368]
[1761383672080,0.14237334,111860.0,111850.0,0.17166989]
[1761383672283,0.14038301,111860.0,111850.0,0.18448989]
[1761383672586,0.40975072,111860.0,111850.0,0.18448989]
[1761383673284,0.44192301,111860.0,111850.0,0.18448989]
[1761383673585,0.45490301,111860.0,111850.0,0.18448989]
[1761383674386,0.42273072,111860.0,111850.0,0.18448989]
[1761383676886,0.09475072,111860.0,111850.0,0.27388539]
[1761383678786,0.23440061,111860.0,111850.0,0.17166989]
[1761383683187,0.24244538,111860.0,111850.0,0.17166989]
[1761383683882,0.24244538,111860.0,111850.0,0.77166989]
[1761383687093,0.29073552,111860.0,111850.0,0.77166989]
[1761383687694,0.16406563,111860.0,111850.0,0.77166989]
[1761383687890,0.21027309,111860.0,111850.0,0.77166989]
[1761383690400,0.0836032,111860.0,111850.0,0.77166989]
[1761383693100,0.18656989,111860.0,111850.0,0.77166989]
[1761383693292,0.23311178,111860.0,111850.0,0.77166989]
[1761383693689,0.10644189,111860.0,111850.0,0.77166989]
[1761383696391,0.10644189,111860.0,111850.0,0.645]
[1761383696593,0.10644189,111860.0,111850.0,0.77166989]
[1761383699293,0.23311178,111860.0,111850.0,0.77166989]
[1761383699494,0.26528407,111860.0,111850.0,0.77166989]
[1761383700502,0.2411811,111860.0,111850.0,0.77166989]
[1761383700698,0.2411811,111860.0,111850.0,0.002]
[1761383700902,0.04431,111820.0,111810.0,0.18552989]
[1761383701092,0.3335887,111820.0,111810.0,0.04604]
[1761383701405,0.23105171,111820.0,111810.0,0.36136]
[1761383701605,0.23105171,111820.0,111810.0,0.48802989]
[1761383702202,0.23105171,111820.0,111810.0,0.36136]
[1761383702406,0.23105171,111820.0,111810.0,0.36736]
[1761383703203,0.20691881,111820.0,111810.0,0.36736]
[1761383703400,0.20691881,111820.0,111810.0,0.36136]
[1761383703705,0.20691881,111820.0,111810.0,0.36636]
[1761383704206,0.20691881,111820.0,111810.0,0.36652]
[1761383704795,0.20691881,111820.0,111810.0,0.05104]
[1761383705003,0.20691881,111820.0,111810.0,0.36652]
[1761383706400,0.06674892,111820.0,111810.0,1.10600989]
[1761383706606,0.04527775,111820.0,111810.0,1.10600989]
[1761383707096,0.06828775,111820.0,111810.0,1.10600989]
[1761383707299,0.04613,111820.0,111810.0,1.10600989]
[1761383707599,0.04613,111820.0,111810.0,1.10596989]
[1761383708496,0.17279989,111820.0,111810.0,1.10596989]
[1761383709103,0.04613,111820.0,111810.0,1.10596989]
[1761383710003,0.04613,111820.0,111810.0,0.79052989]
[1761383710305,0.04613,111820.0,111810.0,1.10604989]
[1761383711306,0.02312,111820.0,111810.0,1.10604989]
[1761383712496,0.04458,111830.0,111820.0,0.0526]
[1761383712697,0.0667196,111830.0,111820.0,0.17931703]
[1761383713305,0.0667196,111830.0,111820.0,0.0526]
[1761383714796,0.0667196,111830.0,111820.0,0.0546]
[1761383715505,0.0667196,111830.0,111820.0,0.18131703]
[1761383717501,0.0667196,111830.0,111820.0,0.0546]
[1761383723411,0.09077801,111830.0,111820.0,0.0546]
[1761383723814,0.0667196,111830.0,111820.0,0.0546]
[1761383725310,0.04619801,111830.0,111820.0,0.27073653]
[1761383725612,0.0221396,111830.0,111820.0,0.18131703]
[1761383725808,0.0437096,111830.0,111820.0,0.18131703]
[1761383726113,0.0667196,111830.0,111820.0,0.18131703]
[1761383726313,0.0667196,111830.0,111820.0,0.27073653]
[1761383726914,0.0437096,111830.0,111820.0,0.27073653]
[1761383727114,0.0667196,111830.0,111820.0,0.1440195]
[1761383727309,0.0667196,111830.0,111820.0,0.27073653]
[1761383728719,0.0667196,111830.0,111820.0,0.1440195]
[1761383728917,0.0667196,111830.0,111820.0,0.27073653]
[1761383729718,0.0667196,111830.0,111820.0,0.18131703]
[1761383730112,0.0667196,111830.0,111820.0,0.27073653]
[1761383733209,0.09077801,111830.0,111820.0,0.27073653]
[1761383738523,0.09077801,111830.0,111820.0,0.18131703]
[1761383741124,0.09077801,111830.0,111820.0,0.0546]
[1761383741322,0.09077801,111830.0,111820.0,0.3696]
[1761383741622,0.09077801,111830.0,111820.0,0.49631703]
[1761383741923,0.09077801,111830.0,111820.0,0.58573653]
[1761383743223,0.0667196,111830.0,111820.0,0.58573653]
[1761383744322,0.0667196,111830.0,111820.0,0.49631703]
[1761383746720,0.0221396,111830.0,111820.0,0.49631703]
[1761383746920,0.05969801,111840.0,111820.0,0.49631703]
[1761383747121,0.23068504,111840.0,111820.0,0.49631703]
[1761383747524,0.20662663,111840.0,111820.0,0.58573553]
[1761383748024,0.23068504,111840.0,111820.0,0.58573553]
[1761383748221,0.20662663,111840.0,111820.0,0.58373553]
[1761383749233,0.23068504,111840.0,111820.0,0.58373553]
[1761383749432,0.20762663,111840.0,111820.0,0.58373553]
[1761383750132,0.20662663,111840.0,111820.0,0.58373553]
[1761383750330,0.10396801,111840.0,111820.0,0.58373553]
[1761383750632,0.23068504,111840.0,111820.0,0.58373553]
[1761383751027,0.23068504,111840.0,111820.0,0.58773553]
[1761383751329,0.10396801,111840.0,111820.0,0.58773553]
[1761383751531,0.10396801,111840.0,111830.0,0.04553]
[1761383751733,0.10396801,111840.0,111830.0,0.36053]
[1761383752733,0.10396801,111840.0,111830.0,0.36453]
[1761383753034,0.06826801,111840.0,111830.0,0.50468703]
[1761383753428,0.09046801,111840.0,111830.0,0.50468703]
[1761383753629,0.09046801,111840.0,111830.0,0.37797]
[1761383754227,0.10352801,111840.0,111830.0,0.37797]
[1761383757234,0.04619801,111840.0,111830.0,0.4673804]
[1761383757445,0.06826801,111840.0,111830.0,0.50468703]
[1761383757631,0.09046801,111840.0,111830.0,0.50468703]
[1761383759631,0.04619801,111840.0,111830.0,0.50468703]
[1761383760026,0.09020801,111840.0,111830.0,0.18968703]
[1761383760240,0.09020801,111840.0,111830.0,0.37797]
[1761383760440,0.09020801,111840.0,111830.0,0.50468703]
[1761383761632,0.37519086,111840.0,111830.0,0.0267]
[1761383761838,0.25458677,111840.0,111830.0,0.04869]
[1761383762039,0.05553,111810.0,111800.0,0.02313377]
[1761383762338,0.22853287,111810.0,111800.0,0.36135377]
[1761383762536,0.26072785,111810.0,111800.0,0.36135377]
[1761383762938,0.26072785,111810.0,111800.0,0.04575377]
[1761383763136,0.26072785,111810.0,111800.0,0.36135377]
[1761383763342,0.22853287,111810.0,111800.0,0.36135377]
[1761383763929,0.10181584,111810.0,111800.0,0.36135377]
[1761383764341,0.10181584,111810.0,111800.0,0.36435377]
[1761383764739,0.10181584,111810.0,111800.0,0.4910708]
[1761383764943,0.10181584,111810.0,111800.0,0.5017908]
[1761383764944,0.08878584,111810.0,111800.0,0.5017908]
[1761383765444,0.08878584,111810.0,111800.0,0.1861908]
[1761383765445,0.0646396,111810.0,111800.0,0.1861908]
[1761383765643,0.0646396,111810.0,111800.0,0.5017508]
[1761383767445,0.0646396,111810.0,111800.0,0.1861908]
[1761383767636,0.0646396,111810.0,111800.0,0.5018308]
[1761383774747,0.0646396,111810.0,111800.0,0.62862837]
[1761383776549,0.06484169,111810.0,111800.0,0.62862837]
[1761383776752,0.20462899,111810.0,111800.0,0.04875377]
[1761383776940,0.20462899,111810.0,111800.0,0.36435377]
[1761383777547,0.20462899,111810.0,111800.0,0.04875377]
[1761383778851,0.22869706,111810.0,111800.0,0.04875377]
[1761383779654,0.05553,111790.0,111780.0,0.5774772]
[1761383779852,0.06484169,111790.0,111780.0,0.7169545]
[1761383780953,0.06484169,111790.0,111780.0,0.7199545]
[1761383782255,0.06484169,111790.0,111780.0,0.73363725]
[1761383782453,0.0425,111790.0,111780.0,0.73363725]
[1761383783547,0.0214,111790.0,111780.0,0.73363725]
[1761383783953,0.0214,111790.0,111780.0,0.04867]
[1761383783954,0.18235901,111790.0,111780.0,0.04867]
[1761383784257,0.20470456,111790.0,111780.0,0.04867]
[1761383786858,0.20470456,111790.0,111780.0,0.06252293]
[1761383788457,0.20470456,111790.0,111780.0,0.04867]
[1761383790061,0.20470456,111790.0,111780.0,0.06224392]
[1761383791656,0.22877263,111790.0,111780.0,0.06224392]
[1761383793463,0.20470456,111790.0,111780.0,0.06224392]
[1761383793957,0.05849,111780.0,111770.0,0.04538]
[1761383794167,0.20759285,111780.0,111770.0,0.04538]
[1761383800870,0.20759285,111780.0,111770.0,0.1721373]
[1761383801067,0.20759285,111780.0,111770.0,0.04538]
[1761383801368,0.08083555,111780.0,111770.0,0.1721373]
[1761383802268,0.20759285,111780.0,111770.0,0.1721373]
[1761383808476,0.20759285,111780.0,111770.0,0.1631833]
[1761383808675,0.23166092,111780.0,111770.0,0.036426]
[1761383808881,0.23166092,111780.0,111770.0,0.1631833]
[1761383809280,0.35841822,111780.0,111770.0,0.036426]
[1761383809874,0.36341822,111780.0,111760.0,0.16302977]
[1761383810079,0.1852473,111770.0,111760.0,0.05919247]
[1761383810277,0.2317576,111770.0,111760.0,0.04538]
[1761383811570,0.2347576,111770.0,111760.0,0.04538]
[1761383813276,0.08393223,111770.0,111760.0,0.04538]
[1761383813476,0.21068953,111770.0,111760.0,0.04538]
[1761383814684,0.21068953,111770.0,111740.0,1.96218]
[1761383814685,0.05849,111750.0,111740.0,1.96218]
[1761383814881,0.08083555,111750.0,111740.0,1.9422373]
[1761383815082,0.20759285,111750.0,111740.0,1.6267573]
[1761383815284,0.08083555,111750.0,111740.0,1.95598268]
[1761383817187,0.08083555,111750.0,111740.0,0.50136268]
[1761383817790,0.08083555,111750.0,111740.0,2.00136268]
[1761383817984,0.08083555,111750.0,111740.0,0.50136268]
[1761383818383,0.08083555,111750.0,111740.0,2.00136268]
[1761383819087,0.08083555,111750.0,111740.0,0.37456538]
[1761383819088,0.20768104,111750.0,111740.0,0.37456538]
[1761383819680,0.20768104,111750.0,111740.0,0.05912538]
[1761383819985,0.23178823,111750.0,111740.0,0.044746]
[1761383821291,0.05697,111740.0,111730.0,0.04365572]
[1761383821481,0.35693734,111740.0,111730.0,0.04365572]
[1761383821681,0.23018004,111740.0,111730.0,0.04365572]
[1761383822376,0.35693734,111740.0,111730.0,0.04365572]
[1761383822981,0.23018004,111740.0,111730.0,0.04365572]
[1761383823390,0.38112263,111740.0,111730.0,0.02220572]
[1761383823987,0.38112263,111740.0,111730.0,0.04332572]
[1761383826291,0.33283015,111740.0,111730.0,0.04332572]
[1761383826892,0.38112263,111740.0,111730.0,0.04332572]
[1761383827090,0.33283015,111740.0,111730.0,0.04332572]
[1761383833795,0.36490085,111740.0,111730.0,8.572e-05]
[1761383833991,0.36490085,111740.0,111730.0,0.02296572]
[1761383834392,0.36490085,111740.0,111730.0,8.572e-05]
[1761383834587,0.01343,111730.0,111710.0,0.1267573]
[1761383834792,0.01343,111730.0,111710.0,0.1707573]
[1761383834793,0.1862273,111720.0,111710.0,0.1707573]
[1761383834993,0.20857285,111720.0,111710.0,0.1707573]
[1761383835194,0.20857285,111720.0,111710.0,0.18332257]
[1761383835394,0.23262949,111720.0,111710.0,0.05656527]
[1761383835592,0.23274317,111720.0,111710.0,0.05656527]
[1761383835790,0.23274317,111720.0,111710.0,0.18332257]
[1761383836799,0.10598587,111720.0,111710.0,0.05756527]
[1761383837199,0.10670565,111720.0,111710.0,0.05756527]
[1761383839904,0.10670565,111720.0,111710.0,0.18454044]
[1761383840104,0.42210565,111720.0,111710.0,0.18454044]
[1761383842004,0.42210565,111720.0,111710.0,0.05756527]
[1761383842308,0.42210565,111720.0,111710.0,0.18454044]
[1761383843606,0.06920622,111720.0,111710.0,0.18454044]
[1761383844797,0.06920622,111720.0,111710.0,0.27404604]
[1761383847205,0.09327565,111720.0,111710.0,0.27404604]
[1761383848206,0.04723565,111720.0,111710.0,0.27404604]
[1761383848601,0.02316622,111720.0,111710.0,0.27404604]
[1761383852408,0.02316622,111720.0,111710.0,0.40102121]
[1761383852709,0.06985943,111740.0,111730.0,0.1468297]
[1761383852901,0.06985943,111740.0,111730.0,0.58916487]
[1761383853105,0.08361943,111740.0,111730.0,0.57707487]
[1761383853606,0.08368815,111740.0,111730.0,0.57707487]
[1761383857812,0.06992815,111740.0,111730.0,0.57707487]
[1761383858009,6.872e-05,111740.0,111730.0,0.57707487]
[1761383859604,0.05961,111760.0,111750.0,0.1347237]
[1761383859910,0.04618,111760.0,111750.0,0.58926887]
[1761383863212,0.07024943,111760.0,111750.0,0.58926887]
[1761383863408,0.10232013,111760.0,111750.0,0.58926887]
[1761383864710,0.12481033,111760.0,111750.0,0.58926887]
[1761383866119,0.09273963,111760.0,111750.0,0.58926887]
[1761383872214,0.10649963,111760.0,111750.0,0.36073]
[1761383872410,0.10649963,111760.0,111750.0,0.48770517]
[1761383873013,0.10649963,111760.0,111750.0,0.36073]
[1761383873213,0.0824302,111760.0,111750.0,0.48770517]
[1761383873524,0.0824302,111760.0,111750.0,0.36073]
[1761383885523,0.0824302,111760.0,111750.0,0.57717907]
[1761383886129,0.0686702,111760.0,111750.0,0.57717907]
[1761383888532,0.0457402,111760.0,111750.0,0.57717907]
[1761383888729,0.0224902,111760.0,111750.0,0.70415424]
[1761383889124,0.0224902,111760.0,111750.0,0.57717907]
[1761383890025,0.0453202,111760.0,111750.0,0.57717907]
[1761383890423,0.0224902,111760.0,111750.0,0.57717907]
[1761383891119,0.08314943,111780.0,111770.0,0.0233]
[1761383891324,0.10558214,111780.0,111770.0,0.17208517]
[1761383891630,0.10558214,111780.0,111770.0,0.04511]
[1761383892227,0.09182214,111780.0,111770.0,0.48736517]
[1761383892429,0.06933214,111780.0,111770.0,0.58891307]
[1761383892634,0.02243271,111780.0,111770.0,0.58891307]
[1761383893636,0.08202943,111800.0,111790.0,0.04511]
[1761383893940,0.1044386,111800.0,111790.0,0.48732517]
[1761383894121,0.08036917,111800.0,111790.0,0.36035]
[1761383894832,0.08136917,111800.0,111790.0,0.36035]
[1761383895929,0.08136917,111800.0,111790.0,0.37219482]
[1761383896330,0.08536917,111800.0,111790.0,0.37219482]